[Event "*** Titled Tuesday Blitz"]
[Site "Chess.com"]
[Date "2019.07.02"]
[Round "6"]
[White "MasterKroket"]
[Black "stoleriu"]
[Result "1-0"]
[WhiteElo "2387"]
[BlackElo "2508"]
[TimeControl "180+2"]
[EndTime "14:22:16 PDT"]
[Termination "MasterKroket won by resignation"]

1. d4 {[%clk 0:03:01.9]} 1... e6 {[%clk 0:02:58.6]} 2. c4 {[%clk 0:03:01.3]}
2... b6 {[%clk 0:02:59.6]} 3. a3 {[%clk 0:03:00.1]} 3... Bb7 {[%clk 0:03:00.4]}
4. Nc3 {[%clk 0:03:01.4]} 4... g6 {[%clk 0:03:01.8]} 5. e4 {[%clk 0:02:59.7]}
5... Bg7 {[%clk 0:03:03.7]} 6. Nf3 {[%clk 0:03:00.4]} 6... d6 {[%clk 0:03:03.9]}
7. h4 {[%clk 0:02:57.4]} 7... h5 {[%clk 0:03:03.1]} 8. Bg5 {[%clk 0:02:56.7]}
8... Ne7 {[%clk 0:03:04.6]} 9. Bd3 {[%clk 0:02:52]} 9... Nd7 {[%clk 0:03:03.1]}
10. d5 {[%clk 0:02:46]} 10... e5 {[%clk 0:02:59.2]} 11. b4 {[%clk 0:02:36.6]}
11... a5 {[%clk 0:02:59.6]} 12. Nh2 {[%clk 0:02:26.9]} 12... Nf6 {[%clk
0:02:48]} 13. c5 {[%clk 0:02:07.1]} 13... axb4 {[%clk 0:02:38.8]} 14. axb4
{[%clk 0:02:07.6]} 14... Rxa1 {[%clk 0:02:39.3]} 15. Qxa1 {[%clk 0:02:09.5]}
15... bxc5 {[%clk 0:02:40.9]} 16. bxc5 {[%clk 0:02:08.1]} 16... dxc5 {[%clk
0:02:42.8]} 17. Qa4+ {[%clk 0:01:54.3]} 17... Qd7 {[%clk 0:02:43.4]} 18. Qa7
{[%clk 0:01:51.2]} 18... c6 {[%clk 0:02:34.2]} 19. Na4 {[%clk 0:01:48]} 19...
Bc8 {[%clk 0:01:12.6]} 20. Qxc5 {[%clk 0:01:38.6]} 20... O-O {[%clk 0:01:05.3]}
21. d6 {[%clk 0:01:31.3]} 21... Re8 {[%clk 0:00:55.4]} 22. Bc2 {[%clk
0:01:18.4]} 22... Qb7 {[%clk 0:00:20.4]} 23. dxe7 {[%clk 0:01:02.1]} 23... Qa6
{[%clk 0:00:20.5]} 24. Nf3 {[%clk 0:00:34.7]} 24... Nd7 {[%clk 0:00:16.8]} 25.
Qc3 {[%clk 0:00:29.1]} 25... f6 {[%clk 0:00:12.9]} 26. Be3 {[%clk 0:00:26.6]}
26... Rxe7 {[%clk 0:00:14.3]} 27. Nc5 {[%clk 0:00:27.9]} 27... Nxc5 {[%clk
0:00:16]} 28. Bxc5 {[%clk 0:00:28.3]} 28... Rd7 {[%clk 0:00:17.1]} 29. Bb3+
{[%clk 0:00:26.6]} 29... Kh7 {[%clk 0:00:18.5]} 30. Bc4 {[%clk 0:00:26.2]} 30...
Qa4 {[%clk 0:00:12.9]} 31. O-O {[%clk 0:00:26.2]} 31... Rd1 {[%clk 0:00:12.5]}
32. Rxd1 {[%clk 0:00:23.8]} 32... Qxd1+ {[%clk 0:00:14.4]} 33. Kh2 {[%clk
0:00:25]} 33... Bg4 {[%clk 0:00:14.9]} 34. Qd3 {[%clk 0:00:24.2]} 34... Qc1
{[%clk 0:00:14.5]} 35. Be3 {[%clk 0:00:22.2]} 35... Qb2 {[%clk 0:00:15.4]} 36.
Nd2 {[%clk 0:00:21.3]} 36... Qb8 {[%clk 0:00:11]} 37. f3 {[%clk 0:00:21.8]}
37... Bc8 {[%clk 0:00:07.6]} 38. Qd8 {[%clk 0:00:22.7]} 1-0

[Event "*** Titled Tuesday Blitz"]
[Site "Chess.com"]
[Date "2019.07.02"]
[Round "6"]
[White "Perecke"]
[Black "novocane"]
[Result "0-1"]
[WhiteElo "2034"]
[BlackElo "2247"]
[TimeControl "180+2"]
[EndTime "14:22:23 PDT"]
[Termination "novocane won by checkmate"]

1. e4 {[%clk 0:02:39.6]} 1... c5 {[%clk 0:02:59.9]} 2. Nf3 {[%clk 0:02:31.3]}
2... Nc6 {[%clk 0:03:01.2]} 3. Nc3 {[%clk 0:02:29.6]} 3... e5 {[%clk 0:03:02.8]}
4. Bc4 {[%clk 0:02:30.5]} 4... Be7 {[%clk 0:03:00.8]} 5. d3 {[%clk 0:02:25.4]}
5... d6 {[%clk 0:03:01.6]} 6. O-O {[%clk 0:02:26]} 6... Nf6 {[%clk 0:03:01.6]}
7. Ng5 {[%clk 0:02:26.8]} 7... O-O {[%clk 0:03:02.3]} 8. f4 {[%clk 0:02:28.1]}
8... h6 {[%clk 0:03:01.5]} 9. Nf3 {[%clk 0:02:25.4]} 9... Bg4 {[%clk 0:02:59.4]}
10. Be3 {[%clk 0:02:22.7]} 10... Nd4 {[%clk 0:02:57.7]} 11. Bxd4 {[%clk
0:02:22.8]} 11... cxd4 {[%clk 0:02:49.9]} 12. Nd5 {[%clk 0:02:22.2]} 12... Nxd5
{[%clk 0:02:29.4]} 13. Bxd5 {[%clk 0:02:24.1]} 13... exf4 {[%clk 0:02:29.3]} 14.
h3 {[%clk 0:02:17.2]} 14... Bh5 {[%clk 0:02:28.1]} 15. Qd2 {[%clk 0:02:13.5]}
15... Bxf3 {[%clk 0:01:41.6]} 16. Rxf3 {[%clk 0:02:15.4]} 16... g5 {[%clk
0:01:41.2]} 17. Raf1 {[%clk 0:02:01.1]} 17... Kg7 {[%clk 0:01:24.8]} 18. g3
{[%clk 0:02:00.7]} 18... f5 {[%clk 0:01:19.4]} 19. gxf4 {[%clk 0:01:56.1]} 19...
g4 {[%clk 0:01:19.4]} 20. hxg4 {[%clk 0:01:45.8]} 20... fxg4 {[%clk 0:01:19.2]}
21. Rg3 {[%clk 0:01:43.2]} 21... h5 {[%clk 0:01:20.5]} 22. Qf2 {[%clk
0:01:18.1]} 22... Bh4 {[%clk 0:01:18.8]} 23. Qxd4+ {[%clk 0:01:18.1]} 23... Qf6
{[%clk 0:01:09]} 24. Qxf6+ {[%clk 0:01:05.4]} 24... Rxf6 {[%clk 0:01:09.6]} 25.
Rg2 {[%clk 0:01:05.1]} 25... Kh6 {[%clk 0:00:55.1]} 26. Bxb7 {[%clk 0:00:47.3]}
26... Raf8 {[%clk 0:00:35.5]} 27. f5 {[%clk 0:00:48]} 27... Bg5 {[%clk
0:00:30.5]} 28. Bd5 {[%clk 0:00:44.4]} 28... Be3+ {[%clk 0:00:30.5]} 29. Kh2
{[%clk 0:00:40.4]} 29... Kg5 {[%clk 0:00:30.8]} 30. Re1 {[%clk 0:00:27.1]} 30...
Bf4+ {[%clk 0:00:30.5]} 31. Kh1 {[%clk 0:00:21.5]} 31... h4 {[%clk 0:00:32.4]}
32. Reg1 {[%clk 0:00:21.4]} 32... g3 {[%clk 0:00:32.2]} 33. Bb3 {[%clk
0:00:04.4]} 33... Kg4 {[%clk 0:00:28.9]} 34. Re2 {[%clk 0:00:02.9]} 34... h3
{[%clk 0:00:28.4]} 35. Rd1 {[%clk 0:00:03.2]} 35... g2+ {[%clk 0:00:26.8]} 36.
Kg1 {[%clk 0:00:04.4]} 36... Kg3 {[%clk 0:00:27]} 37. Re3+ {[%clk 0:00:03.3]}
37... Bxe3# {[%clk 0:00:27.9]} 0-1

[Event "*** Titled Tuesday Blitz"]
[Site "Chess.com"]
[Date "2019.07.02"]
[Round "6"]
[White "GMHess"]
[Black "Bagirova"]
[Result "1-0"]
[WhiteElo "2726"]
[BlackElo "1911"]
[TimeControl "180+2"]
[EndTime "14:22:29 PDT"]
[Termination "GMHess won by checkmate"]

1. b3 {[%clk 0:03:01.9]} 1... Nf6 {[%clk 0:02:54.3]} 2. Bb2 {[%clk 0:03:03.8]}
2... g6 {[%clk 0:02:52]} 3. Bxf6 {[%clk 0:03:04.9]} 3... exf6 {[%clk 0:02:44.7]}
4. c4 {[%clk 0:03:05.1]} 4... Bg7 {[%clk 0:02:43.2]} 5. Nc3 {[%clk 0:03:05.5]}
5... O-O {[%clk 0:02:44.3]} 6. g3 {[%clk 0:03:06.3]} 6... d6 {[%clk 0:02:40.8]}
7. Bg2 {[%clk 0:03:07.1]} 7... Nc6 {[%clk 0:02:39.3]} 8. e3 {[%clk 0:03:06.3]}
8... Re8 {[%clk 0:02:38.5]} 9. Nge2 {[%clk 0:03:07.2]} 9... Bg4 {[%clk
0:02:30.6]} 10. O-O {[%clk 0:02:58.2]} 10... Qd7 {[%clk 0:02:27.8]} 11. d4
{[%clk 0:02:55.2]} 11... Bh6 {[%clk 0:02:14.6]} 12. Nd5 {[%clk 0:02:43.5]} 12...
Bg7 {[%clk 0:02:04.7]} 13. f3 {[%clk 0:02:29.8]} 13... Be6 {[%clk 0:01:59.8]}
14. Ndc3 {[%clk 0:02:20.3]} 14... Bh3 {[%clk 0:01:59.1]} 15. Bxh3 {[%clk
0:02:06]} 15... Qxh3 {[%clk 0:02:00.1]} 16. Nd5 {[%clk 0:02:05.2]} 16... Rac8
{[%clk 0:01:55.5]} 17. Qd3 {[%clk 0:01:58]} 17... Ne7 {[%clk 0:01:51.1]} 18.
Rac1 {[%clk 0:01:27]} 18... c6 {[%clk 0:01:42.1]} 19. Ndf4 {[%clk 0:01:19.1]}
19... Qh6 {[%clk 0:01:34.9]} 20. b4 {[%clk 0:01:14.6]} 20... g5 {[%clk
0:01:09.4]} 21. Ng2 {[%clk 0:01:08.4]} 21... f5 {[%clk 0:01:10.5]} 22. f4 {[%clk
0:01:04]} 22... g4 {[%clk 0:01:02.9]} 23. Nh4 {[%clk 0:00:41.6]} 23... Qe6
{[%clk 0:01:00.4]} 24. Nc3 {[%clk 0:00:35.5]} 24... d5 {[%clk 0:00:55.1]} 25.
cxd5 {[%clk 0:00:34.6]} 25... cxd5 {[%clk 0:00:54]} 26. Nb5 {[%clk 0:00:21.5]}
26... Nc6 {[%clk 0:00:36]} 27. Nxf5 {[%clk 0:00:12.6]} 27... Nxb4 {[%clk
0:00:37.2]} 28. Qb1 {[%clk 0:00:14.2]} 28... Rxc1 {[%clk 0:00:24.3]} 29. Rxc1
{[%clk 0:00:16.1]} 29... Nxa2 {[%clk 0:00:25.1]} 30. Nc7 {[%clk 0:00:14.9]}
30... Qe4 {[%clk 0:00:10]} 31. Nxe8 {[%clk 0:00:14.2]} 31... Qxe8 {[%clk
0:00:10.7]} 32. Rc8 {[%clk 0:00:09.9]} 32... Qxc8 {[%clk 0:00:08.9]} 33. Ne7+
{[%clk 0:00:11]} 33... Kf8 {[%clk 0:00:10.2]} 34. Nxc8 {[%clk 0:00:11]} 34...
Nc3 {[%clk 0:00:12.1]} 35. Qb4+ {[%clk 0:00:11.8]} 35... Ke8 {[%clk 0:00:11.1]}
36. Qe7# {[%clk 0:00:12.8]} 1-0

[Event "*** Titled Tuesday Blitz"]
[Site "Chess.com"]
[Date "2019.07.02"]
[Round "6"]
[White "JustaTrickstar"]
[Black "StephenDedalus83"]
[Result "1-0"]
[WhiteElo "2857"]
[BlackElo "2801"]
[TimeControl "180+2"]
[EndTime "14:22:31 PDT"]
[Termination "JustaTrickstar won by resignation"]

1. c4 {[%clk 0:03:01.9]} 1... g6 {[%clk 0:02:58.9]} 2. d4 {[%clk 0:03:01.2]}
2... Bg7 {[%clk 0:02:58.2]} 3. e4 {[%clk 0:03:02.6]} 3... d6 {[%clk 0:02:58.6]}
4. Nc3 {[%clk 0:03:02.9]} 4... Nf6 {[%clk 0:02:59.6]} 5. Be2 {[%clk 0:03:01.4]}
5... O-O {[%clk 0:03:00.9]} 6. Be3 {[%clk 0:03:02.4]} 6... Nbd7 {[%clk
0:02:57.2]} 7. Nf3 {[%clk 0:02:52.8]} 7... c5 {[%clk 0:02:56.2]} 8. d5 {[%clk
0:02:53.6]} 8... b5 {[%clk 0:02:54.8]} 9. cxb5 {[%clk 0:02:52.3]} 9... a6 {[%clk
0:02:55.5]} 10. O-O {[%clk 0:02:47.2]} 10... Qa5 {[%clk 0:02:51.1]} 11. a4
{[%clk 0:02:28.7]} 11... axb5 {[%clk 0:02:39.1]} 12. axb5 {[%clk 0:02:26]} 12...
Qxa1 {[%clk 0:02:38.8]} 13. Qxa1 {[%clk 0:02:27.9]} 13... Rxa1 {[%clk
0:02:39.2]} 14. Rxa1 {[%clk 0:02:29.8]} 14... Bb7 {[%clk 0:02:37.6]} 15. Ra7
{[%clk 0:02:27.8]} 15... Rb8 {[%clk 0:02:38]} 16. Nd2 {[%clk 0:02:23.7]} 16...
Nb6 {[%clk 0:02:36.7]} 17. Nc4 {[%clk 0:02:03]} 17... Nxc4 {[%clk 0:02:33.7]}
18. Bxc4 {[%clk 0:02:04.9]} 18... Nd7 {[%clk 0:02:34.8]} 19. Na4 {[%clk
0:01:59.3]} 19... f5 {[%clk 0:02:28.2]} 20. f3 {[%clk 0:01:57.2]} 20... fxe4
{[%clk 0:02:26.5]} 21. fxe4 {[%clk 0:01:56.6]} 21... Nf6 {[%clk 0:02:27.5]} 22.
Nc3 {[%clk 0:01:15.5]} 22... Ng4 {[%clk 0:02:28]} 23. Bf2 {[%clk 0:00:58.1]}
23... Rf8 {[%clk 0:01:42.6]} 24. Rxb7 {[%clk 0:00:57]} 24... Rxf2 {[%clk
0:01:43.4]} 25. Ne2 {[%clk 0:00:44.2]} 25... Bd4 {[%clk 0:01:16.4]} 26. Nxd4
{[%clk 0:00:40.5]} 26... cxd4 {[%clk 0:01:17.4]} 27. h3 {[%clk 0:00:15.3]} 27...
Rc2 {[%clk 0:01:17.7]} 28. hxg4 {[%clk 0:00:16]} 28... Rxc4 {[%clk 0:01:18.4]}
29. Rxe7 {[%clk 0:00:08.3]} 29... d3 {[%clk 0:01:19.1]} 30. Kf2 {[%clk
0:00:09.5]} 30... Rb4 {[%clk 0:01:06.2]} 31. Ke3 {[%clk 0:00:09.3]} 31... Rxb5
{[%clk 0:01:06.7]} 32. Kxd3 {[%clk 0:00:09.2]} 32... Rxb2 {[%clk 0:01:07.8]} 33.
e5 {[%clk 0:00:10.3]} 33... dxe5 {[%clk 0:01:08]} 34. d6 {[%clk 0:00:11.5]}
34... Kf8 {[%clk 0:00:56.9]} 35. Rxh7 {[%clk 0:00:12.5]} 35... Rb4 {[%clk
0:00:55.3]} 36. d7 {[%clk 0:00:10.9]} 36... Rd4+ {[%clk 0:00:55.9]} 37. Ke3
{[%clk 0:00:12]} 37... g5 {[%clk 0:00:56.6]} 38. Kf3 {[%clk 0:00:11]} 38... Rf4+
{[%clk 0:00:49.5]} 39. Ke3 {[%clk 0:00:09.7]} 39... Rd4 {[%clk 0:00:50.2]} 40.
d8=Q+ {[%clk 0:00:09.4]} 40... Rxd8 {[%clk 0:00:50.8]} 41. Rh8+ {[%clk
0:00:10.8]} 41... Ke7 {[%clk 0:00:52.7]} 42. Rxd8 {[%clk 0:00:12.4]} 42... Kxd8
{[%clk 0:00:53.9]} 43. Ke4 {[%clk 0:00:13.8]} 43... Ke8 {[%clk 0:00:53.8]} 44.
Kxe5 {[%clk 0:00:15]} 44... Ke7 {[%clk 0:00:55]} 45. Kf5 {[%clk 0:00:16.5]}
45... Kf7 {[%clk 0:00:55.5]} 46. Kxg5 {[%clk 0:00:18.4]} 46... Kg7 {[%clk
0:00:56.7]} 47. Kf5 {[%clk 0:00:19.9]} 47... Kf7 {[%clk 0:00:57.8]} 48. g5
{[%clk 0:00:21.8]} 48... Kg7 {[%clk 0:00:59]} 49. g6 {[%clk 0:00:23.7]} 49...
Kg8 {[%clk 0:01:00.2]} 50. Kg5 {[%clk 0:00:25.6]} 50... Kg7 {[%clk 0:01:01.4]}
51. Kf5 {[%clk 0:00:26.6]} 51... Kg8 {[%clk 0:01:02.5]} 52. Kf6 {[%clk
0:00:28.5]} 52... Kf8 {[%clk 0:01:03.7]} 53. g7+ {[%clk 0:00:30]} 53... Kg8
{[%clk 0:01:04.8]} 54. g3 {[%clk 0:00:31.5]} 54... Kh7 {[%clk 0:01:05.6]} 55.
Kf7 {[%clk 0:00:33.4]} 55... Kh6 {[%clk 0:01:06.7]} 56. g8=Q {[%clk 0:00:34.7]}
1-0

[Event "*** Titled Tuesday Blitz"]
[Site "Chess.com"]
[Date "2019.07.02"]
[Round "6"]
[White "Msb2"]
[Black "moro182"]
[Result "0-1"]
[WhiteElo "2856"]
[BlackElo "2801"]
[TimeControl "180+2"]
[EndTime "14:22:43 PDT"]
[Termination "moro182 won by resignation"]

1. d4 {[%clk 0:03:01.9]} 1... d5 {[%clk 0:03:00.7]} 2. c4 {[%clk 0:03:02.7]}
2... e6 {[%clk 0:03:02.2]} 3. Nc3 {[%clk 0:03:03.6]} 3... Nf6 {[%clk 0:03:03.7]}
4. cxd5 {[%clk 0:03:04.8]} 4... exd5 {[%clk 0:03:05.6]} 5. Bg5 {[%clk
0:03:06.1]} 5... c6 {[%clk 0:03:05.9]} 6. e3 {[%clk 0:03:07.6]} 6... h6 {[%clk
0:03:07.3]} 7. Bh4 {[%clk 0:03:08.6]} 7... Be6 {[%clk 0:03:08.2]} 8. Bd3 {[%clk
0:03:09.1]} 8... Nbd7 {[%clk 0:03:09.8]} 9. Nge2 {[%clk 0:03:10.1]} 9... g5
{[%clk 0:03:10.7]} 10. Bg3 {[%clk 0:03:10.8]} 10... Nh5 {[%clk 0:03:12.3]} 11.
Qc2 {[%clk 0:03:11.7]} 11... Nxg3 {[%clk 0:03:12.7]} 12. Nxg3 {[%clk 0:03:11.4]}
12... h5 {[%clk 0:03:14.2]} 13. Nf5 {[%clk 0:03:11.7]} 13... Qf6 {[%clk
0:03:08.8]} 14. O-O-O {[%clk 0:03:10.4]} 14... O-O-O {[%clk 0:03:05.5]} 15. Kb1
{[%clk 0:03:11.5]} 15... Kb8 {[%clk 0:03:06.1]} 16. f4 {[%clk 0:02:57.4]} 16...
h4 {[%clk 0:02:01.2]} 17. Rhf1 {[%clk 0:02:11.1]} 17... Nb6 {[%clk 0:01:58]} 18.
fxg5 {[%clk 0:01:52.7]} 18... Qxg5 {[%clk 0:01:59.9]} 19. e4 {[%clk 0:01:54.3]}
19... Rg8 {[%clk 0:01:30.5]} 20. Rd2 {[%clk 0:01:54.4]} 20... Bb4 {[%clk
0:00:37.9]} 21. e5 {[%clk 0:01:55]} 21... c5 {[%clk 0:00:33.3]} 22. a3 {[%clk
0:01:16.1]} 22... cxd4 {[%clk 0:00:19.7]} 23. Nxd4 {[%clk 0:01:17.4]} 23... Bxc3
{[%clk 0:00:20.4]} 24. Qxc3 {[%clk 0:01:15.4]} 24... Rc8 {[%clk 0:00:21.5]} 25.
Qa5 {[%clk 0:01:14.1]} 25... Nc4 {[%clk 0:00:12.7]} 26. Bxc4 {[%clk 0:01:13.5]}
26... Rxc4 {[%clk 0:00:10.4]} 27. Nb5 {[%clk 0:00:48.8]} 27... Qe3 {[%clk
0:00:11]} 28. Nd6 {[%clk 0:00:37.8]} 28... Rc5 {[%clk 0:00:11.2]} 29. Qb4 {[%clk
0:00:39.1]} 29... b6 {[%clk 0:00:11.4]} 30. h3 {[%clk 0:00:33.3]} 30... Qxe5
{[%clk 0:00:12.1]} 31. Nxf7 {[%clk 0:00:27.3]} 31... Qc7 {[%clk 0:00:06.3]} 32.
Qf4 {[%clk 0:00:14.7]} 32... Rf8 {[%clk 0:00:04.9]} 33. Rdf2 {[%clk 0:00:08.3]}
33... Rxf7 {[%clk 0:00:05]} 34. Qxh4 {[%clk 0:00:08.6]} 34... Rxf2 {[%clk
0:00:05.4]} 35. Qxf2 {[%clk 0:00:10.5]} 35... Rc6 {[%clk 0:00:05.9]} 36. g4
{[%clk 0:00:12]} 36... Qh7+ {[%clk 0:00:07]} 37. Ka1 {[%clk 0:00:12.7]} 37...
Qd3 {[%clk 0:00:08.5]} 38. Re1 {[%clk 0:00:12]} 38... Qc4 {[%clk 0:00:08.8]} 39.
Qf6 {[%clk 0:00:11.3]} 39... d4 {[%clk 0:00:09.4]} 40. b4 {[%clk 0:00:03.8]} 0-1

[Event "*** Titled Tuesday Blitz"]
[Site "Chess.com"]
[Date "2019.07.02"]
[Round "6"]
[White "Kirill_Klukin"]
[Black "Alex_Molchanov"]
[Result "1-0"]
[WhiteElo "2652"]
[BlackElo "2573"]
[TimeControl "180+2"]
[EndTime "14:22:49 PDT"]
[Termination "Kirill_Klukin won by resignation"]

1. d4 {[%clk 0:03:01.9]} 1... Nf6 {[%clk 0:02:58.9]} 2. Nf3 {[%clk 0:03:03.1]}
2... d5 {[%clk 0:02:59.6]} 3. c4 {[%clk 0:03:04.1]} 3... e6 {[%clk 0:03:00.2]}
4. Nc3 {[%clk 0:03:05.3]} 4... Be7 {[%clk 0:03:00.6]} 5. Bg5 {[%clk 0:03:06.2]}
5... h6 {[%clk 0:03:00.5]} 6. Bh4 {[%clk 0:03:07.2]} 6... Nbd7 {[%clk
0:03:00.2]} 7. e3 {[%clk 0:03:08.3]} 7... O-O {[%clk 0:03:01.8]} 8. Qc2 {[%clk
0:03:09.4]} 8... dxc4 {[%clk 0:03:03.3]} 9. Bxc4 {[%clk 0:03:10]} 9... c5 {[%clk
0:03:00.4]} 10. O-O {[%clk 0:03:08.4]} 10... b6 {[%clk 0:02:59.8]} 11. Rfd1
{[%clk 0:03:00.7]} 11... cxd4 {[%clk 0:02:52.8]} 12. Nxd4 {[%clk 0:03:00.1]}
12... Bb7 {[%clk 0:02:54.1]} 13. Nxe6 {[%clk 0:02:51.9]} 13... fxe6 {[%clk
0:02:51.7]} 14. Bxe6+ {[%clk 0:02:52.5]} 14... Kh8 {[%clk 0:02:52.6]} 15. Bxf6
{[%clk 0:02:53.6]} 15... Bxf6 {[%clk 0:02:48.2]} 16. Rxd7 {[%clk 0:02:30.8]}
16... Qe8 {[%clk 0:02:39.6]} 17. Rxb7 {[%clk 0:02:21.3]} 17... Qxe6 {[%clk
0:02:40.8]} 18. Rd1 {[%clk 0:02:19.7]} 18... Rac8 {[%clk 0:02:26.4]} 19. Rxa7
{[%clk 0:02:16.9]} 19... Bh4 {[%clk 0:02:22.1]} 20. g3 {[%clk 0:02:16]} 20...
Bg5 {[%clk 0:02:23.6]} 21. Qe4 {[%clk 0:01:58.9]} 21... Qf6 {[%clk 0:02:17.8]}
22. f4 {[%clk 0:01:53]} 22... Rce8 {[%clk 0:02:13.3]} 23. Qg2 {[%clk 0:01:41.6]}
23... Rxe3 {[%clk 0:02:13.6]} 24. Nd5 {[%clk 0:01:41.2]} 24... Qe6 {[%clk
0:02:01.3]} 25. Nxe3 {[%clk 0:01:34.5]} 25... Be7 {[%clk 0:02:01.4]} 26. Rxe7
{[%clk 0:01:21.8]} 26... Qxe7 {[%clk 0:02:03.3]} 27. Nd5 {[%clk 0:01:23.4]}
27... Qe6 {[%clk 0:02:00]} 28. Nc3 {[%clk 0:01:21.3]} 28... b5 {[%clk
0:01:59.7]} 29. Qe2 {[%clk 0:01:14.4]} 29... Qb6+ {[%clk 0:01:58.1]} 30. Qf2
{[%clk 0:01:15.5]} 30... Qa6 {[%clk 0:01:58.4]} 31. a3 {[%clk 0:01:16.2]} 31...
Rb8 {[%clk 0:01:53.2]} 32. Rd7 {[%clk 0:01:12.9]} 32... Qe6 {[%clk 0:01:52.5]}
33. Qd4 {[%clk 0:01:08.5]} 33... Qe1+ {[%clk 0:01:50.5]} 34. Kg2 {[%clk
0:01:09.7]} 34... Rg8 {[%clk 0:01:52.4]} 35. Rd8 {[%clk 0:01:10.1]} 35... Qc1
{[%clk 0:01:46.4]} 36. Rxg8+ {[%clk 0:01:10.2]} 36... Kxg8 {[%clk 0:01:48.3]}
37. Qd8+ {[%clk 0:01:11]} 37... Kh7 {[%clk 0:01:49.2]} 38. Qd3+ {[%clk
0:01:11.8]} 38... Kg8 {[%clk 0:01:50.4]} 39. Qxb5 {[%clk 0:01:13.1]} 39... Qd2+
{[%clk 0:01:50.1]} 40. Qe2 {[%clk 0:01:14.7]} 40... Qc1 {[%clk 0:01:51.2]} 41.
a4 {[%clk 0:01:15.6]} 41... Qa1 {[%clk 0:01:51.2]} 42. Qc2 {[%clk 0:01:03.4]}
42... Kh8 {[%clk 0:01:50.4]} 43. b4 {[%clk 0:01:04.3]} 43... Qa3 {[%clk
0:01:48.5]} 44. b5 {[%clk 0:01:02.3]} 44... Qb4 {[%clk 0:01:50]} 45. Qd3 {[%clk
0:01:00]} 45... h5 {[%clk 0:01:49.3]} 46. Qe3 {[%clk 0:00:56.8]} 46... h4 {[%clk
0:01:48]} 47. gxh4 {[%clk 0:00:57.9]} 47... Qb2+ {[%clk 0:01:48.2]} 48. Kg3
{[%clk 0:00:59.2]} 48... Qa1 {[%clk 0:01:48.2]} 49. b6 {[%clk 0:00:59.4]} 49...
Qb2 {[%clk 0:01:49]} 50. a5 {[%clk 0:01:00.1]} 50... Qb4 {[%clk 0:01:49]} 51. a6
{[%clk 0:00:59.9]} 51... Qf8 {[%clk 0:01:48.7]} 52. a7 {[%clk 0:00:59.9]} 52...
Qa8 {[%clk 0:01:49.5]} 53. Ne4 {[%clk 0:00:57.7]} 53... Kh7 {[%clk 0:01:49]} 54.
Ng5+ {[%clk 0:00:57.9]} 54... Kh6 {[%clk 0:01:50.5]} 55. Qe6+ {[%clk 0:00:58.5]}
55... Kh5 {[%clk 0:01:52]} 56. Qg4+ {[%clk 0:00:52.4]} 56... Kg6 {[%clk
0:01:53.2]} 57. Ne4+ {[%clk 0:00:45.8]} 57... Kh7 {[%clk 0:01:51.4]} 58. Qf5+
{[%clk 0:00:45.9]} 58... g6 {[%clk 0:01:52.1]} 59. Qf7+ {[%clk 0:00:44.9]} 59...
Kh6 {[%clk 0:01:53.4]} 60. Qe6 {[%clk 0:00:42.6]} 60... Qd8 {[%clk 0:01:48]} 61.
Qd6 {[%clk 0:00:33.1]} 61... Qe8 {[%clk 0:01:44.1]} 62. f5 {[%clk 0:00:32.9]}
1-0

[Event "*** Titled Tuesday Blitz"]
[Site "Chess.com"]
[Date "2019.07.02"]
[Round "6"]
[White "NeverEverForever1990"]
[Black "Daniel-2003"]
[Result "1-0"]
[WhiteElo "2434"]
[BlackElo "2286"]
[TimeControl "180+2"]
[EndTime "14:22:51 PDT"]
[Termination "NeverEverForever1990 won by resignation"]

1. d4 {[%clk 0:03:01.9]} 1... Nf6 {[%clk 0:03:00.5]} 2. Nf3 {[%clk 0:02:47.6]}
2... e6 {[%clk 0:02:57.9]} 3. Bf4 {[%clk 0:02:48.4]} 3... h6 {[%clk 0:02:54.5]}
4. h3 {[%clk 0:02:45.6]} 4... c5 {[%clk 0:02:50.4]} 5. e3 {[%clk 0:02:30]} 5...
Nc6 {[%clk 0:02:40.5]} 6. Nbd2 {[%clk 0:02:23.2]} 6... d5 {[%clk 0:02:35]} 7. c3
{[%clk 0:02:21.7]} 7... Bd6 {[%clk 0:02:30.5]} 8. Bxd6 {[%clk 0:02:13.1]} 8...
Qxd6 {[%clk 0:02:30.1]} 9. Bb5 {[%clk 0:02:11]} 9... Bd7 {[%clk 0:02:26.4]} 10.
O-O {[%clk 0:02:07.6]} 10... O-O-O {[%clk 0:02:18.9]} 11. Bxc6 {[%clk
0:02:05.3]} 11... Bxc6 {[%clk 0:02:11.9]} 12. b4 {[%clk 0:02:07.2]} 12... cxd4
{[%clk 0:02:04.2]} 13. cxd4 {[%clk 0:02:04.1]} 13... Kb8 {[%clk 0:01:58.9]} 14.
Qb3 {[%clk 0:02:00.8]} 14... Ne4 {[%clk 0:01:54.4]} 15. a4 {[%clk 0:01:56]}
15... Nxd2 {[%clk 0:01:46.9]} 16. Nxd2 {[%clk 0:01:53.3]} 16... Bd7 {[%clk
0:01:48.8]} 17. Rfc1 {[%clk 0:01:49.3]} 17... Bc6 {[%clk 0:01:50.7]} 18. Rc3
{[%clk 0:01:40.9]} 18... Bd7 {[%clk 0:01:52.6]} 19. Rac1 {[%clk 0:01:39.9]}
19... Bc6 {[%clk 0:01:54.2]} 20. Nf3 {[%clk 0:01:24]} 20... f6 {[%clk 0:01:45]}
21. Ne1 {[%clk 0:01:22]} 21... Rc8 {[%clk 0:01:40.1]} 22. Nd3 {[%clk 0:01:12]}
22... b6 {[%clk 0:01:38.6]} 23. Nc5 {[%clk 0:01:00]} 23... Ba8 {[%clk
0:01:34.1]} 24. Na6+ {[%clk 0:00:57.8]} 24... Kb7 {[%clk 0:01:35]} 25. Rc7+
{[%clk 0:00:54.3]} 25... Rxc7 {[%clk 0:01:31.5]} 26. Rxc7+ {[%clk 0:00:56.2]}
26... Qxc7 {[%clk 0:01:24.4]} 27. Nxc7 {[%clk 0:00:58.1]} 27... Kxc7 {[%clk
0:01:26.2]} 28. b5 {[%clk 0:00:57.2]} 28... Kd7 {[%clk 0:01:20.6]} 29. a5 {[%clk
0:00:53.7]} 29... bxa5 {[%clk 0:01:15.7]} 30. Qa3 {[%clk 0:00:50.9]} 30... Bb7
{[%clk 0:01:13.2]} 31. Qxa5 {[%clk 0:00:51.3]} 31... Ra8 {[%clk 0:01:13.2]} 32.
Kh2 {[%clk 0:00:48]} 32... h5 {[%clk 0:01:10.1]} 33. h4 {[%clk 0:00:44.1]} 33...
e5 {[%clk 0:01:05.1]} 34. g3 {[%clk 0:00:38.4]} 34... e4 {[%clk 0:01:00.4]} 35.
Qa3 {[%clk 0:00:35.4]} 35... a6 {[%clk 0:00:46.7]} 36. bxa6 {[%clk 0:00:27.8]}
36... Bc6 {[%clk 0:00:47.4]} 37. a7 {[%clk 0:00:27.6]} 37... Kc7 {[%clk
0:00:41.5]} 38. Qe7+ {[%clk 0:00:20.5]} 38... Kb6 {[%clk 0:00:42.4]} 39. Qxg7
{[%clk 0:00:19.2]} 39... f5 {[%clk 0:00:43.6]} 40. Qf6 {[%clk 0:00:15.9]} 40...
Rxa7 {[%clk 0:00:39.9]} 41. Qxf5 {[%clk 0:00:16.7]} 41... Ra2 {[%clk 0:00:35.9]}
42. g4 {[%clk 0:00:16.7]} 42... hxg4 {[%clk 0:00:31.6]} 43. h5 {[%clk
0:00:17.9]} 43... Kc7 {[%clk 0:00:27.8]} 44. h6 {[%clk 0:00:18.3]} 44... Ra8
{[%clk 0:00:24.6]} 45. h7 {[%clk 0:00:18.1]} 45... Bd7 {[%clk 0:00:23.4]} 46.
Qe5+ {[%clk 0:00:19.4]} 46... Kc6 {[%clk 0:00:24.8]} 47. h8=Q {[%clk 0:00:21.3]}
1-0